[Event "Titled Tuesday Blitz March 01 Late 2022"]
[White "Desideri, Ricardo Maruchi"]
[Black "Yuan, Qingyu"]
[WhiteFideId "2110440"]
[BlackFideId "8609772"]
[WhiteElo "1945"]
[BlackElo "2359"]
[Result "0-1"]
[Round "02"]
[TimeControl "180+1"]
[Date "2022.03.02"]
[WhiteClock "0:01:19"]
[BlackClock "0:01:14"]

1. e4 {[%clk 0:03:00]}  c5 {[%clk 0:02:59]} 2. Nf3 {[%clk 0:03:00]}  d6 {[%clk 0:03:00]} 3. d4 {[%clk 0:02:59]}  cxd4 {[%clk 0:03:01]} 4. Nxd4 {[%clk 0:02:59]}  Nf6 {[%clk 0:03:01]} 5. Nc3 {[%clk 0:02:59]}  a6 {[%clk 0:03:02]} 6. Rg1 {[%clk 0:02:57]}  e5 {[%clk 0:03:02]} 7. Nb3 {[%clk 0:02:55]}  h5 {[%clk 0:03:02]} 8. h3 {[%clk 0:02:53]}  Be6 {[%clk 0:03:00]} 9. g4 {[%clk 0:02:53]}  hxg4 {[%clk 0:03:00]} 10. hxg4 {[%clk 0:02:53]}  d5 {[%clk 0:02:55]} 11. exd5 {[%clk 0:02:42]}  Nxd5 {[%clk 0:02:56]} 12. Qf3 {[%clk 0:02:31]}  Nxc3 {[%clk 0:02:47]} 13. Qxc3 {[%clk 0:02:29]}  Nc6 {[%clk 0:02:46]} 14. Bd2 {[%clk 0:02:22]}  Rc8 {[%clk 0:02:39]} 15. O-O-O {[%clk 0:02:20]}  Nd4 {[%clk 0:02:26]} 16. Qd3 {[%clk 0:02:11]}  Rxc2+ {[%clk 0:01:32]} 17. Kb1 {[%clk 0:02:02]}  Rc8 {[%clk 0:01:19]} 18. f4 {[%clk 0:01:41]}  Nxb3 {[%clk 0:01:15]} 19. Qxd8+ {[%clk 0:01:39]}  Rxd8 {[%clk 0:01:15]} 20. axb3 {[%clk 0:01:32]}  Bxb3 {[%clk 0:01:16]} 21. Re1 {[%clk 0:01:19]}  Rxd2 {[%clk 0:01:15]} 22. Rxe5+ {[%clk 0:01:19]}  Kd8 {[%clk 0:01:14]} 0-1


[Site "https://www.chess.com"]

[Event "Titled Tuesday Blitz March 01 Late 2022"]
[White "Dong, Bao Nghia"]
[Black "Pein, Jonathan"]
[WhiteFideId "12400343"]
[BlackFideId "417092"]
[WhiteElo "2360"]
[BlackElo "2140"]
[Result "1-0"]
[Round "02"]
[TimeControl "180+1"]
[Date "2022.03.02"]
[WhiteClock "0:01:03"]
[BlackClock "0:00:05"]

1. d4 {[%clk 0:02:59]}  c5 {[%clk 0:02:54]} 2. c4 {[%clk 0:02:59]}  cxd4 {[%clk 0:02:53]} 3. Qxd4 {[%clk 0:03:00]}  Nc6 {[%clk 0:02:54]} 4. Qc3 {[%clk 0:03:00]}  e6 {[%clk 0:02:51]} 5. a3 {[%clk 0:03:00]}  a5 {[%clk 0:02:51]} 6. Nd2 {[%clk 0:02:57]}  Nf6 {[%clk 0:02:46]} 7. e4 {[%clk 0:02:57]}  Qb6 {[%clk 0:01:57]} 8. h3 {[%clk 0:02:50]}  Bb4 {[%clk 0:01:48]} 9. axb4 {[%clk 0:02:43]}  axb4 {[%clk 0:01:47]} 10. Rxa8 {[%clk 0:02:44]}  bxc3 {[%clk 0:01:47]} 11. Rxc8+ {[%clk 0:02:42]}  Ke7 {[%clk 0:01:31]} 12. Rxh8 {[%clk 0:02:42]}  cxd2+ {[%clk 0:01:11]} 13. Bxd2 {[%clk 0:02:42]}  Nxe4 {[%clk 0:01:12]} 14. Be3 {[%clk 0:02:42]}  Qxb2 {[%clk 0:01:09]} 15. Bd3 {[%clk 0:02:26]}  Qc3+ {[%clk 0:00:50]} 16. Ke2 {[%clk 0:02:26]}  f5 {[%clk 0:00:42]} 17. Nf3 {[%clk 0:02:20]}  Ne5 {[%clk 0:00:26]} 18. Nxe5 {[%clk 0:02:17]}  Qb2+ {[%clk 0:00:24]} 19. Kf3 {[%clk 0:02:15]}  Qxe5 {[%clk 0:00:25]} 20. Rd1 {[%clk 0:01:51]}  Kf7 {[%clk 0:00:20]} 21. Rd8 {[%clk 0:01:41]}  Ke7 {[%clk 0:00:19]} 22. Rxd7+ {[%clk 0:01:24]}  Kxd7 {[%clk 0:00:12]} 23. Bxe4+ {[%clk 0:01:25]}  Ke7 {[%clk 0:00:13]} 24. Bxb7 {[%clk 0:01:25]}  Qc7 {[%clk 0:00:08]} 25. Rb1 {[%clk 0:01:25]}  Qxc4 {[%clk 0:00:08]} 26. g3 {[%clk 0:01:19]}  h6 {[%clk 0:00:08]} 27. Kg2 {[%clk 0:01:19]}  Kf6 {[%clk 0:00:08]} 28. Bf3 {[%clk 0:01:20]}  g5 {[%clk 0:00:08]} 29. Rb6 {[%clk 0:01:20]}  g4 {[%clk 0:00:07]} 30. hxg4 {[%clk 0:01:20]}  fxg4 {[%clk 0:00:08]} 31. Bb7 {[%clk 0:01:17]}  h5 {[%clk 0:00:08]} 32. Rc6 {[%clk 0:01:11]}  Qe4+ {[%clk 0:00:08]} 33. Kh2 {[%clk 0:01:11]}  Qb1 {[%clk 0:00:06]} 34. Bc8 {[%clk 0:01:10]}  Kg7 {[%clk 0:00:06]} 35. Bxe6 {[%clk 0:01:10]}  Qe4 {[%clk 0:00:06]} 36. Rc7+ {[%clk 0:01:09]}  Kf6 {[%clk 0:00:06]} 37. Bc8 {[%clk 0:01:08]}  h4 {[%clk 0:00:07]} 38. Bf4 {[%clk 0:01:04]}  h3 {[%clk 0:00:06]} 39. Bb7 {[%clk 0:01:04]}  Qe1 {[%clk 0:00:06]} 40. Be3 {[%clk 0:01:03]}  Qa5 {[%clk 0:00:05]} 41. Rc6+ {[%clk 0:01:02]}  Ke5 {[%clk 0:00:05]} 42. Rc5+ {[%clk 0:01:03]} 1-0


[Site "https://www.chess.com"]

[Event "Titled Tuesday Blitz March 01 Late 2022"]
[White "Dounis, Alexandros"]
[Black "Morales Flores, Monserrat"]
[WhiteFideId "4213238"]
[BlackFideId "3412016"]
[WhiteElo "2195"]
[BlackElo "2028"]
[Result "1-0"]
[Round "02"]
[TimeControl "180+1"]
[Date "2022.03.02"]
[WhiteClock "0:02:02"]
[BlackClock "0:01:57"]

1. Nf3 {[%clk 0:03:00]}  Nf6 {[%clk 0:02:59]} 2. g3 {[%clk 0:03:00]}  g6 {[%clk 0:02:59]} 3. Bg2 {[%clk 0:03:01]}  Bg7 {[%clk 0:02:59]} 4. O-O {[%clk 0:03:02]}  O-O {[%clk 0:03:00]} 5. d4 {[%clk 0:03:02]}  d6 {[%clk 0:03:00]} 6. Nc3 {[%clk 0:03:01]}  Nc6 {[%clk 0:02:59]} 7. d5 {[%clk 0:03:01]}  Nb8 {[%clk 0:02:56]} 8. h3 {[%clk 0:02:58]}  e5 {[%clk 0:02:56]} 9. dxe6 {[%clk 0:02:56]}  fxe6 {[%clk 0:02:57]} 10. e4 {[%clk 0:02:56]}  e5 {[%clk 0:02:57]} 11. Re1 {[%clk 0:02:53]}  Nc6 {[%clk 0:02:58]} 12. Be3 {[%clk 0:02:53]}  Bd7 {[%clk 0:02:58]} 13. Qd2 {[%clk 0:02:53]}  Qc8 {[%clk 0:02:58]} 14. Kh2 {[%clk 0:02:52]}  a6 {[%clk 0:02:58]} 15. Bh6 {[%clk 0:02:51]}  b5 {[%clk 0:02:53]} 16. Bxg7 {[%clk 0:02:50]}  Kxg7 {[%clk 0:02:54]} 17. Rad1 {[%clk 0:02:49]}  h5 {[%clk 0:02:49]} 18. Nd5 {[%clk 0:02:48]}  Be6 {[%clk 0:02:47]} 19. Ng5 {[%clk 0:02:45]}  Bd7 {[%clk 0:02:40]} 20. f4 {[%clk 0:02:39]}  exf4 {[%clk 0:02:39]} 21. gxf4 {[%clk 0:02:34]}  Qd8 {[%clk 0:02:22]} 22. Qc3 {[%clk 0:02:29]}  Kh6 {[%clk 0:02:17]} 23. e5 {[%clk 0:02:13]}  dxe5 {[%clk 0:02:13]} 24. Nxf6 {[%clk 0:02:10]}  Qxf6 {[%clk 0:02:09]} 25. Rxd7 {[%clk 0:02:05]}  Qxf4+ {[%clk 0:02:09]} 26. Qg3 {[%clk 0:02:05]}  Qxg3+ {[%clk 0:02:09]} 27. Kxg3 {[%clk 0:02:05]}  Rf6 {[%clk 0:01:57]} 28. Nf7+ {[%clk 0:02:04]}  Kg7 {[%clk 0:01:57]} 29. Bxc6 {[%clk 0:02:02]}  Rxf7 {[%clk 0:01:57]} 30. Rxf7+ {[%clk 0:02:02]} 1-0


[Site "https://www.chess.com"]

[Event "Titled Tuesday Blitz March 01 Late 2022"]
[White "Dubov, Daniil"]
[Black "Arabidze, Meri"]
[WhiteFideId "24126055"]
[BlackFideId "13604040"]
[WhiteElo "2791"]
[BlackElo "2329"]
[Result "0-1"]
[Round "02"]
[TimeControl "180+1"]
[Date "2022.03.01"]
[WhiteClock "0:00:06"]
[BlackClock "0:00:05"]

1. d4 {[%clk 0:03:00]}  Nf6 {[%clk 0:02:55]} 2. Nf3 {[%clk 0:03:00]}  e6 {[%clk 0:02:54]} 3. Bg5 {[%clk 0:02:59]}  d5 {[%clk 0:02:52]} 4. e3 {[%clk 0:02:57]}  Be7 {[%clk 0:02:52]} 5. Nbd2 {[%clk 0:02:57]}  h6 {[%clk 0:02:52]} 6. Bh4 {[%clk 0:02:55]}  c5 {[%clk 0:02:48]} 7. c3 {[%clk 0:02:54]}  Nbd7 {[%clk 0:02:46]} 8. Bd3 {[%clk 0:02:53]}  b6 {[%clk 0:02:44]} 9. O-O {[%clk 0:02:26]}  Bb7 {[%clk 0:02:42]} 10. Qb1 {[%clk 0:02:24]}  Nh5 {[%clk 0:02:29]} 11. Bg6 {[%clk 0:02:15]}  Bxh4 {[%clk 0:02:16]} 12. Bxh5 {[%clk 0:02:14]}  Bf6 {[%clk 0:02:06]} 13. Bg4 {[%clk 0:02:04]}  O-O {[%clk 0:02:03]} 14. Bh3 {[%clk 0:02:03]}  Re8 {[%clk 0:01:48]} 15. g3 {[%clk 0:02:01]}  e5 {[%clk 0:01:39]} 16. dxe5 {[%clk 0:02:01]}  Nxe5 {[%clk 0:01:38]} 17. Nxe5 {[%clk 0:02:00]}  Bxe5 {[%clk 0:01:39]} 18. Bg2 {[%clk 0:02:00]}  Qc7 {[%clk 0:01:33]} 19. Qc2 {[%clk 0:01:53]}  Rad8 {[%clk 0:01:33]} 20. Rad1 {[%clk 0:01:50]}  Qb8 {[%clk 0:01:12]} 21. Nf3 {[%clk 0:01:47]}  Bf6 {[%clk 0:01:09]} 22. Rd2 {[%clk 0:01:46]}  Qa8 {[%clk 0:01:02]} 23. Qf5 {[%clk 0:01:23]}  Bc8 {[%clk 0:00:46]} 24. Qh5 {[%clk 0:01:07]}  Bb7 {[%clk 0:00:47]} 25. Rfd1 {[%clk 0:00:44]}  g6 {[%clk 0:00:45]} 26. Qxh6 {[%clk 0:00:37]}  d4 {[%clk 0:00:45]} 27. Ne1 {[%clk 0:00:31]}  Bxg2 {[%clk 0:00:26]} 28. Nxg2 {[%clk 0:00:30]}  dxc3 {[%clk 0:00:27]} 29. bxc3 {[%clk 0:00:29]}  Bxc3 {[%clk 0:00:24]} 30. Rd6 {[%clk 0:00:21]}  Be5 {[%clk 0:00:18]} 31. R6d2 {[%clk 0:00:14]}  c4 {[%clk 0:00:17]} 32. Qg5 {[%clk 0:00:11]}  Rxd2 {[%clk 0:00:14]} 33. Rxd2 {[%clk 0:00:11]}  c3 {[%clk 0:00:14]} 34. Re2 {[%clk 0:00:10]}  Qe4 {[%clk 0:00:13]} 35. Ne1 {[%clk 0:00:08]}  Rc8 {[%clk 0:00:09]} 36. f3 {[%clk 0:00:07]}  Qc4 {[%clk 0:00:08]} 37. Rc2 {[%clk 0:00:06]}  Bg7 {[%clk 0:00:08]} 38. Kg2 {[%clk 0:00:03]}  b5 {[%clk 0:00:08]} 39. Qf4 {[%clk 0:00:04]}  a5 {[%clk 0:00:07]} 40. Qxc4 {[%clk 0:00:03]}  Rxc4 {[%clk 0:00:08]} 41. Nd3 {[%clk 0:00:04]}  b4 {[%clk 0:00:08]} 42. Kf2 {[%clk 0:00:04]}  a4 {[%clk 0:00:08]} 43. Nc1 {[%clk 0:00:04]}  Rc7 {[%clk 0:00:05]} 44. Ke2 {[%clk 0:00:04]}  Rb7 {[%clk 0:00:05]} 45. f4 {[%clk 0:00:04]}  b3 {[%clk 0:00:05]} 46. axb3 {[%clk 0:00:04]}  axb3 {[%clk 0:00:06]} 47. Nxb3 {[%clk 0:00:04]}  Rxb3 {[%clk 0:00:07]} 48. e4 {[%clk 0:00:04]}  Rb2 {[%clk 0:00:07]} 49. Kd3 {[%clk 0:00:04]}  Rxc2 {[%clk 0:00:07]} 50. Kxc2 {[%clk 0:00:05]}  Bd4 {[%clk 0:00:08]} 51. e5 {[%clk 0:00:05]}  Kg7 {[%clk 0:00:07]} 52. Kd3 {[%clk 0:00:05]}  Kh6 {[%clk 0:00:06]} 53. g4 {[%clk 0:00:05]}  Kg7 {[%clk 0:00:06]} 54. h4 {[%clk 0:00:04]}  Kh6 {[%clk 0:00:05]} 55. Kc2 {[%clk 0:00:03]}  Kg7 {[%clk 0:00:05]} 56. Kd3 {[%clk 0:00:04]}  Kf8 {[%clk 0:00:05]} 57. Kc2 {[%clk 0:00:04]}  Ke7 {[%clk 0:00:05]} 58. Kd3 {[%clk 0:00:04]}  Ke6 {[%clk 0:00:05]} 59. Kc2 {[%clk 0:00:04]}  Be3 {[%clk 0:00:05]} 60. f5+ {[%clk 0:00:02]}  gxf5 {[%clk 0:00:05]} 61. gxf5+ {[%clk 0:00:03]}  Kxf5 {[%clk 0:00:05]} 62. Kxc3 {[%clk 0:00:04]}  Kxe5 {[%clk 0:00:05]} 63. Kd3 {[%clk 0:00:04]}  Bh6 {[%clk 0:00:05]} 64. Ke2 {[%clk 0:00:05]}  Kf4 {[%clk 0:00:05]} 65. h5 {[%clk 0:00:04]}  Kg5 {[%clk 0:00:05]} 66. Kf3 {[%clk 0:00:05]}  Kxh5 {[%clk 0:00:05]} 67. Ke4 {[%clk 0:00:06]}  Kg6 {[%clk 0:00:05]} 0-1


[Site "https://www.chess.com"]

[Event "Titled Tuesday Blitz March 01 Late 2022"]
[White "Erdogdu, Mert"]
[Black "Miszler, Levente"]
[WhiteFideId "6301495"]
[BlackFideId "763276"]
[WhiteElo "2485"]
[BlackElo "1966"]
[Result "0-1"]
[Round "02"]
[TimeControl "180+1"]
[Date "2022.03.02"]
[WhiteClock "0:01:01"]
[BlackClock "0:00:57"]

1. e4 {[%clk 0:03:00]}  e6 {[%clk 0:02:59]} 2. d4 {[%clk 0:03:00]}  d5 {[%clk 0:02:59]} 3. exd5 {[%clk 0:03:01]}  exd5 {[%clk 0:03:00]} 4. c4 {[%clk 0:03:02]}  Nf6 {[%clk 0:02:59]} 5. Nc3 {[%clk 0:03:02]}  Bb4 {[%clk 0:02:58]} 6. Bd3 {[%clk 0:03:02]}  dxc4 {[%clk 0:02:55]} 7. Bxc4 {[%clk 0:03:03]}  O-O {[%clk 0:02:55]} 8. Ne2 {[%clk 0:03:04]}  Nc6 {[%clk 0:02:55]} 9. O-O {[%clk 0:03:04]}  Bg4 {[%clk 0:02:52]} 10. Bg5 {[%clk 0:03:03]}  h6 {[%clk 0:02:51]} 11. Bh4 {[%clk 0:03:03]}  Re8 {[%clk 0:02:45]} 12. f3 {[%clk 0:02:50]}  Bh5 {[%clk 0:02:43]} 13. Qd2 {[%clk 0:02:42]}  Na5 {[%clk 0:02:21]} 14. Bd3 {[%clk 0:02:41]}  c5 {[%clk 0:02:12]} 15. dxc5 {[%clk 0:02:23]}  Nc4 {[%clk 0:02:04]} 16. Qc2 {[%clk 0:01:26]}  Ne3 {[%clk 0:02:02]} 17. Qd2 {[%clk 0:01:18]}  Nxf1 {[%clk 0:02:00]} 18. Rxf1 {[%clk 0:01:18]}  Bxc5+ {[%clk 0:01:58]} 19. Kh1 {[%clk 0:01:19]}  Bg6 {[%clk 0:01:51]} 20. Rd1 {[%clk 0:01:19]}  Qxd3 {[%clk 0:01:48]} 21. Qxd3 {[%clk 0:01:20]}  Bxd3 {[%clk 0:01:48]} 22. Rxd3 {[%clk 0:01:21]}  Rad8 {[%clk 0:01:43]} 23. Rxd8 {[%clk 0:01:21]}  Rxd8 {[%clk 0:01:44]} 24. g4 {[%clk 0:01:21]}  Rd2 {[%clk 0:01:43]} 25. b3 {[%clk 0:01:18]}  Bb4 {[%clk 0:01:40]} 26. Bxf6 {[%clk 0:01:11]}  gxf6 {[%clk 0:01:40]} 27. Kg1 {[%clk 0:01:11]}  Bxc3 {[%clk 0:01:37]} 28. Nxc3 {[%clk 0:01:11]}  Rc2 {[%clk 0:01:37]} 29. Ne4 {[%clk 0:01:12]}  Kg7 {[%clk 0:01:33]} 30. a4 {[%clk 0:01:11]}  Rb2 {[%clk 0:01:31]} 31. Nd6 {[%clk 0:01:09]}  Rxb3 {[%clk 0:01:29]} 32. Kf2 {[%clk 0:01:09]}  b6 {[%clk 0:01:22]} 33. h4 {[%clk 0:01:05]}  Rb4 {[%clk 0:01:21]} 34. h5 {[%clk 0:01:00]}  Rxa4 {[%clk 0:01:18]} 35. Ne8+ {[%clk 0:01:00]}  Kf8 {[%clk 0:01:12]} 36. Nxf6 {[%clk 0:01:01]}  a5 {[%clk 0:01:06]} 37. Ke3 {[%clk 0:01:01]}  Rb4 {[%clk 0:01:03]} 38. Nd5 {[%clk 0:01:00]}  Rb3+ {[%clk 0:01:02]} 39. Ke4 {[%clk 0:01:00]}  a4 {[%clk 0:01:02]} 40. f4 {[%clk 0:00:59]}  a3 {[%clk 0:01:00]} 41. g5 {[%clk 0:01:00]}  hxg5 {[%clk 0:01:00]} 42. fxg5 {[%clk 0:01:00]}  a2 {[%clk 0:00:59]} 43. h6 {[%clk 0:01:01]}  a1=Q {[%clk 0:00:59]} 44. Ne7 {[%clk 0:01:01]}  Kxe7 {[%clk 0:00:57]} 0-1


[Site "https://www.chess.com"]

[Event "Titled Tuesday Blitz March 01 Late 2022"]
[White "Fernandez Siles, Luis"]
[Black "Boyer, Mahel"]
[WhiteFideId "2209420"]
[BlackFideId "45102422"]
[WhiteElo "2212"]
[BlackElo "2328"]
[Result "0-1"]
[Round "02"]
[TimeControl "180+1"]
[Date "2022.03.02"]
[WhiteClock "0:01:00"]
[BlackClock "0:01:14"]

1. e4 {[%clk 0:03:00]}  e5 {[%clk 0:02:55]} 2. Nf3 {[%clk 0:03:00]}  Nc6 {[%clk 0:02:54]} 3. Bc4 {[%clk 0:03:00]}  Nf6 {[%clk 0:02:53]} 4. d4 {[%clk 0:02:57]}  exd4 {[%clk 0:02:49]} 5. O-O {[%clk 0:02:56]}  Nxe4 {[%clk 0:02:30]} 6. Nc3 {[%clk 0:02:56]}  Nf6 {[%clk 0:02:25]} 7. Nxd4 {[%clk 0:02:25]}  d5 {[%clk 0:02:22]} 8. Re1+ {[%clk 0:02:20]}  Be7 {[%clk 0:02:21]} 9. Bb5 {[%clk 0:01:54]}  Bd7 {[%clk 0:02:16]} 10. Bg5 {[%clk 0:01:51]}  O-O {[%clk 0:02:13]} 11. Rxe7 {[%clk 0:01:20]}  Nxe7 {[%clk 0:01:50]} 12. Bxd7 {[%clk 0:01:15]}  Qxd7 {[%clk 0:01:31]} 13. Bxf6 {[%clk 0:01:14]}  gxf6 {[%clk 0:01:32]} 14. Qh5 {[%clk 0:01:09]}  c5 {[%clk 0:01:24]} 15. Nf3 {[%clk 0:01:07]}  Qf5 {[%clk 0:01:22]} 16. Qh6 {[%clk 0:01:05]}  d4 {[%clk 0:01:16]} 17. Ne2 {[%clk 0:01:05]}  Qg6 {[%clk 0:01:15]} 18. Qd2 {[%clk 0:01:04]}  Nd5 {[%clk 0:01:15]} 19. Ng3 {[%clk 0:01:04]}  Rfe8 {[%clk 0:01:14]} 20. Nh4 {[%clk 0:01:00]}  Qg5 {[%clk 0:01:14]} 0-1


[Site "https://www.chess.com"]

[Event "Titled Tuesday Blitz March 01 Late 2022"]
[White "Garriga Cazorla, Pere"]
[Black "Steenbekkers, Franck"]
[WhiteFideId "32011601"]
[BlackFideId "1004220"]
[WhiteElo "2458"]
[BlackElo "2174"]
[Result "1-0"]
[Round "02"]
[TimeControl "180+1"]
[Date "2022.03.02"]
[WhiteClock "0:01:35"]
[BlackClock "0:00:06"]

1. d4 {[%clk 0:03:00]}  Nf6 {[%clk 0:02:55]} 2. c4 {[%clk 0:02:59]}  g6 {[%clk 0:02:54]} 3. Nc3 {[%clk 0:02:57]}  d5 {[%clk 0:02:53]} 4. cxd5 {[%clk 0:02:57]}  Nxd5 {[%clk 0:02:52]} 5. e4 {[%clk 0:02:58]}  Nxc3 {[%clk 0:02:51]} 6. bxc3 {[%clk 0:02:58]}  Bg7 {[%clk 0:02:52]} 7. Bb5+ {[%clk 0:02:58]}  Bd7 {[%clk 0:02:51]} 8. Be2 {[%clk 0:02:52]}  c5 {[%clk 0:02:50]} 9. Nf3 {[%clk 0:02:44]}  O-O {[%clk 0:02:46]} 10. O-O {[%clk 0:02:43]}  Bg4 {[%clk 0:02:43]} 11. Be3 {[%clk 0:02:40]}  Nc6 {[%clk 0:02:37]} 12. d5 {[%clk 0:02:37]}  Bxf3 {[%clk 0:02:36]} 13. Bxf3 {[%clk 0:02:35]}  Ne5 {[%clk 0:02:35]} 14. Be2 {[%clk 0:02:34]}  f5 {[%clk 0:02:34]} 15. exf5 {[%clk 0:02:32]}  gxf5 {[%clk 0:02:32]} 16. f4 {[%clk 0:02:31]}  Ng6 {[%clk 0:02:31]} 17. Rb1 {[%clk 0:02:31]}  b6 {[%clk 0:02:30]} 18. Qd2 {[%clk 0:02:30]}  Qd6 {[%clk 0:02:29]} 19. c4 {[%clk 0:02:26]}  Rad8 {[%clk 0:02:27]} 20. g3 {[%clk 0:02:24]}  e6 {[%clk 0:02:25]} 21. Bf3 {[%clk 0:02:19]}  e5 {[%clk 0:02:20]} 22. fxe5 {[%clk 0:02:08]}  Bxe5 {[%clk 0:02:14]} 23. Bh6 {[%clk 0:02:05]}  Rfe8 {[%clk 0:02:05]} 24. Bh5 {[%clk 0:02:00]}  f4 {[%clk 0:01:09]} 25. gxf4 {[%clk 0:01:50]}  Bd4+ {[%clk 0:00:57]} 26. Kh1 {[%clk 0:01:49]}  Kh8 {[%clk 0:00:46]} 27. f5 {[%clk 0:01:45]}  Ne5 {[%clk 0:00:35]} 28. Bxe8 {[%clk 0:01:43]}  Rxe8 {[%clk 0:00:34]} 29. Rbe1 {[%clk 0:01:40]}  Re7 {[%clk 0:00:28]} 30. f6 {[%clk 0:01:38]}  Rf7 {[%clk 0:00:22]} 31. Bg7+ {[%clk 0:01:37]}  Kg8 {[%clk 0:00:21]} 32. Qe2 {[%clk 0:01:38]}  b5 {[%clk 0:00:12]} 33. Rf5 {[%clk 0:01:37]}  Nxc4 {[%clk 0:00:06]} 34. Qe8+ {[%clk 0:01:35]} 1-0


[Site "https://www.chess.com"]

[Event "Titled Tuesday Blitz March 01 Late 2022"]
[White "Gatterer, Florian"]
[Black "Riehle, Marco"]
[WhiteFideId "811688"]
[BlackFideId "12904392"]
[WhiteElo "2218"]
[BlackElo "2462"]
[Result "0-1"]
[Round "02"]
[TimeControl "180+1"]
[Date "2022.03.02"]
[WhiteClock "0:00:23"]
[BlackClock "0:02:11"]

1. e4 {[%clk 0:03:00]}  e5 {[%clk 0:02:59]} 2. Nf3 {[%clk 0:03:00]}  Nf6 {[%clk 0:02:59]} 3. Nc3 {[%clk 0:02:58]}  Nc6 {[%clk 0:02:58]} 4. d4 {[%clk 0:02:40]}  exd4 {[%clk 0:02:59]} 5. Nd5 {[%clk 0:02:40]}  Nb4 {[%clk 0:02:58]} 6. Nxf6+ {[%clk 0:02:36]}  Qxf6 {[%clk 0:02:58]} 7. Bg5 {[%clk 0:02:36]}  Qb6 {[%clk 0:02:55]} 8. a3 {[%clk 0:02:27]}  Nc6 {[%clk 0:02:53]} 9. b4 {[%clk 0:02:19]}  h6 {[%clk 0:02:51]} 10. Bf4 {[%clk 0:02:17]}  Be7 {[%clk 0:02:48]} 11. Bd3 {[%clk 0:02:15]}  d6 {[%clk 0:02:46]} 12. h3 {[%clk 0:02:14]}  O-O {[%clk 0:02:45]} 13. O-O {[%clk 0:02:12]}  Bf6 {[%clk 0:02:44]} 14. b5 {[%clk 0:02:07]}  Ne5 {[%clk 0:02:44]} 15. Bxe5 {[%clk 0:02:01]}  dxe5 {[%clk 0:02:44]} 16. a4 {[%clk 0:02:01]}  c6 {[%clk 0:02:39]} 17. Bc4 {[%clk 0:01:57]}  Be6 {[%clk 0:02:35]} 18. Bxe6 {[%clk 0:01:51]}  fxe6 {[%clk 0:02:35]} 19. Qe2 {[%clk 0:01:43]}  a6 {[%clk 0:02:34]} 20. Qc4 {[%clk 0:01:35]}  cxb5 {[%clk 0:02:33]} 21. axb5 {[%clk 0:01:32]}  axb5 {[%clk 0:02:32]} 22. Qb3 {[%clk 0:01:31]}  Kh7 {[%clk 0:02:25]} 23. Rfb1 {[%clk 0:01:25]}  Rxa1 {[%clk 0:02:21]} 24. Rxa1 {[%clk 0:01:25]}  Rc8 {[%clk 0:02:22]} 25. Rb1 {[%clk 0:01:09]}  Qc6 {[%clk 0:02:21]} 26. Rb2 {[%clk 0:00:53]}  Qxe4 {[%clk 0:02:21]} 27. Qxb5 {[%clk 0:00:50]}  Rxc2 {[%clk 0:02:20]} 28. Rxc2 {[%clk 0:00:48]}  Qxc2 {[%clk 0:02:21]} 29. Qxb7 {[%clk 0:00:45]}  e4 {[%clk 0:02:20]} 30. Ne1 {[%clk 0:00:39]}  Qe2 {[%clk 0:02:14]} 31. Qb1 {[%clk 0:00:33]}  d3 {[%clk 0:02:13]} 32. Kh2 {[%clk 0:00:26]}  Be5+ {[%clk 0:02:11]} 33. Kg1 {[%clk 0:00:23]}  d2 {[%clk 0:02:10]} 34. Nf3 {[%clk 0:00:23]}  d1=Q+ {[%clk 0:02:09]} 35. Qxd1 {[%clk 0:00:22]}  Qxd1+ {[%clk 0:02:10]} 36. Ne1 {[%clk 0:00:23]}  Qxe1# {[%clk 0:02:11]} 0-1


[Site "https://www.chess.com"]

[Event "Titled Tuesday Blitz March 01 Late 2022"]
[White "Goltsev, Dmitry"]
[Black "Ashiev, Eduard"]
[WhiteFideId "24176710"]
[BlackFideId "4130090"]
[WhiteElo "2273"]
[BlackElo "2004"]
[Result "1-0"]
[Round "02"]
[TimeControl "180+1"]
[Date "2022.03.02"]
[WhiteClock "0:01:50"]
[BlackClock "0:00:09"]

1. e4 {[%clk 0:03:00]}  e5 {[%clk 0:02:57]} 2. Nf3 {[%clk 0:03:00]}  Nc6 {[%clk 0:02:57]} 3. Bb5 {[%clk 0:03:01]}  Nge7 {[%clk 0:02:56]} 4. O-O {[%clk 0:03:01]}  g6 {[%clk 0:02:54]} 5. c3 {[%clk 0:02:58]}  Bg7 {[%clk 0:02:54]} 6. d4 {[%clk 0:02:58]}  exd4 {[%clk 0:02:54]} 7. cxd4 {[%clk 0:02:59]}  d5 {[%clk 0:02:54]} 8. Nc3 {[%clk 0:02:58]}  O-O {[%clk 0:02:49]} 9. Bg5 {[%clk 0:02:55]}  f6 {[%clk 0:02:44]} 10. Bh4 {[%clk 0:02:53]}  Kh8 {[%clk 0:02:14]} 11. Re1 {[%clk 0:02:51]}  Bg4 {[%clk 0:02:09]} 12. e5 {[%clk 0:02:47]}  Nf5 {[%clk 0:01:46]} 13. Bxf6 {[%clk 0:02:41]}  Ncxd4 {[%clk 0:01:32]} 14. Bxd8 {[%clk 0:02:40]}  Raxd8 {[%clk 0:01:28]} 15. Nxd4 {[%clk 0:02:31]}  Bxd1 {[%clk 0:01:27]} 16. Raxd1 {[%clk 0:02:27]}  Nxd4 {[%clk 0:01:14]} 17. Rxd4 {[%clk 0:02:28]}  c6 {[%clk 0:01:09]} 18. Bf1 {[%clk 0:02:25]}  Rfe8 {[%clk 0:00:56]} 19. f4 {[%clk 0:02:23]}  g5 {[%clk 0:00:55]} 20. g3 {[%clk 0:02:11]}  gxf4 {[%clk 0:00:46]} 21. gxf4 {[%clk 0:02:12]}  Bh6 {[%clk 0:00:46]} 22. f5 {[%clk 0:02:04]}  b5 {[%clk 0:00:37]} 23. a3 {[%clk 0:02:00]}  a5 {[%clk 0:00:36]} 24. f6 {[%clk 0:01:57]}  b4 {[%clk 0:00:27]} 25. axb4 {[%clk 0:01:58]}  axb4 {[%clk 0:00:27]} 26. Rxb4 {[%clk 0:01:59]}  c5 {[%clk 0:00:23]} 27. Rb7 {[%clk 0:01:55]}  d4 {[%clk 0:00:21]} 28. f7 {[%clk 0:01:55]}  Rf8 {[%clk 0:00:18]} 29. Nb5 {[%clk 0:01:52]}  d3 {[%clk 0:00:15]} 30. e6 {[%clk 0:01:50]}  d2 {[%clk 0:00:14]} 31. Rd1 {[%clk 0:01:50]}  Be3+ {[%clk 0:00:14]} 32. Kh1 {[%clk 0:01:51]}  Rb8 {[%clk 0:00:09]} 33. Rxb8 {[%clk 0:01:50]}  Rxb8 {[%clk 0:00:09]} 34. e7 {[%clk 0:01:50]} 1-0


[Site "https://www.chess.com"]